[Event "Titled Tuesday Blitz April 25 Early 2023"]
[White "Prudnykova, Olga"]
[Black "Sonnenschein, Philipp"]
[WhiteFideId "14121093"]
[BlackFideId "16250877"]
[WhiteElo "2113"]
[BlackElo "2224"]
[Result "1-0"]
[Round "11"]
[TimeControl "180+2"]
[Date "2023.04.25"]
[WhiteClock "0:00:14"]
[BlackClock "0:00:29"]

1. e4 {[%clk 0:03:00]}  c6 {[%clk 0:02:59]} 2. d4 {[%clk 0:03:00]}  d5 {[%clk 0:03:00]} 3. exd5 {[%clk 0:03:00]}  cxd5 {[%clk 0:03:01]} 4. c4 {[%clk 0:03:00]}  Nf6 {[%clk 0:03:00]} 5. Nc3 {[%clk 0:03:01]}  g6 {[%clk 0:03:00]} 6. cxd5 {[%clk 0:02:54]}  Bg7 {[%clk 0:03:01]} 7. Qb3 {[%clk 0:02:54]}  O-O {[%clk 0:03:00]} 8. Be2 {[%clk 0:02:53]}  Qb6 {[%clk 0:02:49]} 9. Qxb6 {[%clk 0:02:48]}  axb6 {[%clk 0:02:49]} 10. Nf3 {[%clk 0:02:48]}  Na6 {[%clk 0:02:45]} 11. O-O {[%clk 0:02:47]}  Nc7 {[%clk 0:02:42]} 12. Bc4 {[%clk 0:02:45]}  Rd8 {[%clk 0:02:42]} 13. Re1 {[%clk 0:02:43]}  Kf8 {[%clk 0:02:35]} 14. Bg5 {[%clk 0:02:41]}  b5 {[%clk 0:02:17]} 15. Bxb5 {[%clk 0:02:16]}  Ncxd5 {[%clk 0:02:15]} 16. Bc4 {[%clk 0:02:06]}  Nxc3 {[%clk 0:02:08]} 17. bxc3 {[%clk 0:02:05]}  Ra3 {[%clk 0:02:08]} 18. Bb3 {[%clk 0:02:02]}  Bf5 {[%clk 0:02:04]} 19. Rad1 {[%clk 0:01:59]}  Ne4 {[%clk 0:01:57]} 20. Bxe7+ {[%clk 0:01:35]}  Kxe7 {[%clk 0:01:56]} 21. Nd2 {[%clk 0:01:36]}  Kf8 {[%clk 0:01:39]} 22. Nxe4 {[%clk 0:01:35]}  Rc8 {[%clk 0:01:29]} 23. c4 {[%clk 0:01:27]}  Rd8 {[%clk 0:01:21]} 24. d5 {[%clk 0:01:18]}  Raa8 {[%clk 0:01:17]} 25. h3 {[%clk 0:01:13]}  h5 {[%clk 0:01:15]} 26. c5 {[%clk 0:01:10]}  Ra5 {[%clk 0:01:13]} 27. Rc1 {[%clk 0:00:53]}  Bd4 {[%clk 0:01:08]} 28. c6 {[%clk 0:00:44]}  bxc6 {[%clk 0:01:08]} 29. dxc6 {[%clk 0:00:44]}  Re5 {[%clk 0:00:56]} 30. Ng3 {[%clk 0:00:28]}  Bc8 {[%clk 0:00:54]} 31. Rxe5 {[%clk 0:00:21]}  Bxe5 {[%clk 0:00:54]} 32. Ne4 {[%clk 0:00:21]}  f5 {[%clk 0:00:48]} 33. Nc5 {[%clk 0:00:19]}  Rd2 {[%clk 0:00:47]} 34. Rd1 {[%clk 0:00:15]}  Rxd1+ {[%clk 0:00:43]} 35. Bxd1 {[%clk 0:00:15]}  Bd4 {[%clk 0:00:40]} 36. Nb3 {[%clk 0:00:13]}  Bb6 {[%clk 0:00:40]} 37. Nd2 {[%clk 0:00:13]}  Ke7 {[%clk 0:00:40]} 38. Bb3 {[%clk 0:00:12]}  Kd6 {[%clk 0:00:41]} 39. Bf7 {[%clk 0:00:12]}  g5 {[%clk 0:00:36]} 40. Nc4+ {[%clk 0:00:12]}  Kxc6 {[%clk 0:00:36]} 41. Nxb6 {[%clk 0:00:13]}  Kxb6 {[%clk 0:00:37]} 42. Bxh5 {[%clk 0:00:14]}  Ka5 {[%clk 0:00:37]} 43. Bf7 {[%clk 0:00:14]}  Kb4 {[%clk 0:00:36]} 44. Bb3 {[%clk 0:00:14]}  Kc3 {[%clk 0:00:35]} 45. g3 {[%clk 0:00:14]}  Kd4 {[%clk 0:00:35]} 46. h4 {[%clk 0:00:14]}  gxh4 {[%clk 0:00:35]} 47. gxh4 {[%clk 0:00:15]}  Ke5 {[%clk 0:00:35]} 48. Kh2 {[%clk 0:00:15]}  Kf4 {[%clk 0:00:35]} 49. Bf7 {[%clk 0:00:13]}  Kg4 {[%clk 0:00:34]} 50. h5 {[%clk 0:00:12]}  Kg5 {[%clk 0:00:31]} 51. Kg3 {[%clk 0:00:13]}  Bb7 {[%clk 0:00:30]} 52. f4+ {[%clk 0:00:12]}  Kh6 {[%clk 0:00:31]} 53. a4 {[%clk 0:00:11]}  Kg7 {[%clk 0:00:30]} 54. Bg6 {[%clk 0:00:11]}  Be4 {[%clk 0:00:31]} 55. a5 {[%clk 0:00:11]}  Kh6 {[%clk 0:00:31]} 56. Kf2 {[%clk 0:00:12]}  Kg7 {[%clk 0:00:29]} 57. Ke3 {[%clk 0:00:12]}  Kf6 {[%clk 0:00:29]} 58. Kd4 {[%clk 0:00:13]}  Bg2 {[%clk 0:00:28]} 59. Kc5 {[%clk 0:00:13]}  Bf1 {[%clk 0:00:29]} 60. Kb6 {[%clk 0:00:13]}  Kg7 {[%clk 0:00:29]} 61. a6 {[%clk 0:00:14]} 1-0


[Site "https://www.chess.com"]

[Event "Titled Tuesday Blitz April 25 Early 2023"]
[White "Toncheva, Nadya"]
[Black "Sarkar, Justin"]
[WhiteFideId "2924056"]
[BlackFideId "2010011"]
[WhiteElo "2101"]
[BlackElo "2189"]
[Result "1-0"]
[Round "11"]
[TimeControl "180+2"]
[Date "2023.04.25"]
[WhiteClock "0:02:17"]
[BlackClock "0:00:01"]

1. e4 {[%clk 0:03:00]}  e5 {[%clk 0:02:43]} 2. Nf3 {[%clk 0:03:01]}  Nc6 {[%clk 0:02:42]} 3. Bb5 {[%clk 0:03:01]}  a6 {[%clk 0:02:40]} 4. Ba4 {[%clk 0:03:02]}  Nf6 {[%clk 0:02:39]} 5. O-O {[%clk 0:03:02]}  Be7 {[%clk 0:02:37]} 6. Re1 {[%clk 0:03:02]}  b5 {[%clk 0:02:36]} 7. Bb3 {[%clk 0:03:03]}  d6 {[%clk 0:02:36]} 8. c3 {[%clk 0:03:03]}  O-O {[%clk 0:02:35]} 9. h3 {[%clk 0:03:04]}  Nb8 {[%clk 0:02:27]} 10. d4 {[%clk 0:03:04]}  Nbd7 {[%clk 0:02:27]} 11. Nbd2 {[%clk 0:03:04]}  Bb7 {[%clk 0:02:26]} 12. a4 {[%clk 0:03:03]}  c5 {[%clk 0:02:12]} 13. d5 {[%clk 0:03:02]}  c4 {[%clk 0:02:06]} 14. Bc2 {[%clk 0:03:02]}  Nc5 {[%clk 0:02:04]} 15. Nf1 {[%clk 0:03:00]}  Nfd7 {[%clk 0:01:53]} 16. Ng3 {[%clk 0:02:58]}  g6 {[%clk 0:01:41]} 17. Bh6 {[%clk 0:02:57]}  Re8 {[%clk 0:01:40]} 18. Nh2 {[%clk 0:02:58]}  bxa4 {[%clk 0:01:26]} 19. Bxa4 {[%clk 0:02:55]}  Nxa4 {[%clk 0:01:22]} 20. Rxa4 {[%clk 0:02:56]}  Nb6 {[%clk 0:01:16]} 21. Ra2 {[%clk 0:02:55]}  a5 {[%clk 0:01:09]} 22. Qf3 {[%clk 0:02:41]}  a4 {[%clk 0:00:57]} 23. Nf5 {[%clk 0:02:37]}  Bf8 {[%clk 0:00:37]} 24. Ng4 {[%clk 0:02:36]}  gxf5 {[%clk 0:00:24]} 25. Qxf5 {[%clk 0:02:36]}  Be7 {[%clk 0:00:11]} 26. Nxe5 {[%clk 0:02:25]}  dxe5 {[%clk 0:00:04]} 27. Qg4+ {[%clk 0:02:25]}  Bg5 {[%clk 0:00:04]} 28. Bxg5 {[%clk 0:02:26]}  Qc8 {[%clk 0:00:02]} 29. Qg3 {[%clk 0:02:20]}  Kf8 {[%clk 0:00:01]} 30. Bf6 {[%clk 0:02:17]} 1-0


[Site "https://www.chess.com"]

[Event "Titled Tuesday Blitz April 25 Early 2023"]
[White "Hajiyev, Kanan"]
[Black "Tarnowska, Aleksandra"]
[WhiteFideId "13404148"]
[BlackFideId "1180967"]
[WhiteElo "2103"]
[BlackElo "1776"]
[Result "1-0"]
[Round "11"]
[TimeControl "180+2"]
[Date "2023.04.25"]
[WhiteClock "0:01:23"]
[BlackClock "0:00:02"]

1. d4 {[%clk 0:02:40]}  d5 {[%clk 0:02:59]} 2. c4 {[%clk 0:02:38]}  e6 {[%clk 0:02:58]} 3. cxd5 {[%clk 0:02:39]}  exd5 {[%clk 0:02:58]} 4. Nc3 {[%clk 0:02:40]}  Nf6 {[%clk 0:02:58]} 5. Nf3 {[%clk 0:02:41]}  Be7 {[%clk 0:02:55]} 6. Bf4 {[%clk 0:02:41]}  O-O {[%clk 0:02:53]} 7. Qc2 {[%clk 0:02:41]}  c6 {[%clk 0:02:53]} 8. e3 {[%clk 0:02:41]}  Bg4 {[%clk 0:02:53]} 9. Ne5 {[%clk 0:02:41]}  Bh5 {[%clk 0:02:50]} 10. Bd3 {[%clk 0:02:41]}  Nbd7 {[%clk 0:02:48]} 11. O-O {[%clk 0:02:37]}  Bg6 {[%clk 0:02:29]} 12. Nxg6 {[%clk 0:02:35]}  fxg6 {[%clk 0:02:09]} 13. h3 {[%clk 0:02:34]}  Re8 {[%clk 0:01:37]} 14. Rab1 {[%clk 0:02:33]}  Nf8 {[%clk 0:01:37]} 15. b4 {[%clk 0:02:31]}  Ne6 {[%clk 0:01:36]} 16. Be5 {[%clk 0:02:31]}  Bd6 {[%clk 0:01:28]} 17. f4 {[%clk 0:02:28]}  Bxe5 {[%clk 0:01:21]} 18. fxe5 {[%clk 0:02:28]}  Nd7 {[%clk 0:01:19]} 19. b5 {[%clk 0:02:21]}  Rf8 {[%clk 0:01:14]} 20. Rxf8+ {[%clk 0:02:13]}  Qxf8 {[%clk 0:01:13]} 21. bxc6 {[%clk 0:02:14]}  bxc6 {[%clk 0:01:14]} 22. Rf1 {[%clk 0:02:11]}  Qa3 {[%clk 0:01:05]} 23. Nb1 {[%clk 0:02:01]}  Qe7 {[%clk 0:00:29]} 24. Qxc6 {[%clk 0:02:00]}  Nb6 {[%clk 0:00:16]} 25. Nc3 {[%clk 0:01:42]}  Rc8 {[%clk 0:00:16]} 26. Nxd5 {[%clk 0:01:42]}  Qe8 {[%clk 0:00:03]} 27. Qxe8+ {[%clk 0:01:28]}  Rxe8 {[%clk 0:00:03]} 28. Nxb6 {[%clk 0:01:28]}  axb6 {[%clk 0:00:04]} 29. Bc4 {[%clk 0:01:27]}  h6 {[%clk 0:00:03]} 30. Rb1 {[%clk 0:01:26]}  Kh7 {[%clk 0:00:03]} 31. Rxb6 {[%clk 0:01:25]}  Ng5 {[%clk 0:00:03]} 32. Bd3 {[%clk 0:01:25]}  Rc8 {[%clk 0:00:02]} 33. Bxg6+ {[%clk 0:01:25]}  Kg8 {[%clk 0:00:02]} 34. h4 {[%clk 0:01:23]}  Rc1+ {[%clk 0:00:03]} 35. Kh2 {[%clk 0:01:23]}  Nf7 {[%clk 0:00:02]} 36. Rb8+ {[%clk 0:01:23]}  Nd8 {[%clk 0:00:02]} 37. Rxd8# {[%clk 0:01:23]} 1-0


[Site "https://www.chess.com"]

[Event "Titled Tuesday Blitz April 25 Early 2023"]
[White "Buscar, Michael"]
[Black "Estrada Nieto, Julian"]
[WhiteFideId "2603616"]
[BlackFideId "5101018"]
[WhiteElo "2010"]
[BlackElo "2161"]
[Result "0-1"]
[Round "11"]
[TimeControl "180+2"]
[Date "2023.04.25"]
[WhiteClock "0:02:00"]
[BlackClock "0:01:46"]

1. d4 {[%clk 0:03:00]}  d5 {[%clk 0:02:59]} 2. c4 {[%clk 0:02:59]}  dxc4 {[%clk 0:02:59]} 3. e3 {[%clk 0:02:59]}  Nf6 {[%clk 0:02:59]} 4. Bxc4 {[%clk 0:02:59]}  e6 {[%clk 0:03:00]} 5. Nf3 {[%clk 0:02:59]}  a6 {[%clk 0:03:01]} 6. O-O {[%clk 0:02:58]}  c5 {[%clk 0:03:01]} 7. a3 {[%clk 0:02:57]}  Nc6 {[%clk 0:03:00]} 8. Nc3 {[%clk 0:02:57]}  cxd4 {[%clk 0:02:57]} 9. exd4 {[%clk 0:02:57]}  Be7 {[%clk 0:02:57]} 10. Bd3 {[%clk 0:02:58]}  O-O {[%clk 0:02:57]} 11. Bc2 {[%clk 0:02:58]}  b5 {[%clk 0:02:54]} 12. Qd3 {[%clk 0:02:58]}  Bb7 {[%clk 0:02:53]} 13. Bg5 {[%clk 0:02:57]}  g6 {[%clk 0:02:54]} 14. Rad1 {[%clk 0:02:57]}  Na5 {[%clk 0:02:49]} 15. Ne5 {[%clk 0:02:54]}  Rc8 {[%clk 0:02:49]} 16. Qh3 {[%clk 0:02:40]}  Nc4 {[%clk 0:02:48]} 17. Bc1 {[%clk 0:02:40]}  Qc7 {[%clk 0:02:24]} 18. Rfe1 {[%clk 0:02:39]}  Nxa3 {[%clk 0:02:17]} 19. Bxg6 {[%clk 0:02:29]}  hxg6 {[%clk 0:02:08]} 20. Nxg6 {[%clk 0:02:28]}  fxg6 {[%clk 0:02:04]} 21. Qxe6+ {[%clk 0:02:27]}  Rf7 {[%clk 0:02:00]} 22. bxa3 {[%clk 0:02:02]}  Qxc3 {[%clk 0:01:57]} 23. Re3 {[%clk 0:02:02]}  Qc6 {[%clk 0:01:56]} 24. Qh3 {[%clk 0:02:00]}  Qxc1 {[%clk 0:01:46]} 0-1


[Site "https://www.chess.com"]

[Event "Titled Tuesday Blitz April 25 Early 2023"]
[White "littlepillow2010"]
[Black "KorolDimitriy75"]
[WhiteElo "2359"]
[BlackElo "2430"]
[Result "1-0"]
[Round "11"]
[TimeControl "180+2"]
[Date "2023.04.25"]
[WhiteClock "0:00:22"]
[BlackClock "0:00:03"]

1. e4 {[%clk 0:03:00]}  c5 {[%clk 0:02:58]} 2. Nf3 {[%clk 0:03:00]}  d6 {[%clk 0:02:58]} 3. d4 {[%clk 0:03:01]}  cxd4 {[%clk 0:02:59]} 4. Nxd4 {[%clk 0:03:00]}  Nf6 {[%clk 0:02:59]} 5. Nc3 {[%clk 0:03:01]}  g6 {[%clk 0:03:00]} 6. Be3 {[%clk 0:03:00]}  Bg7 {[%clk 0:03:01]} 7. f3 {[%clk 0:03:01]}  O-O {[%clk 0:03:01]} 8. Qd2 {[%clk 0:03:02]}  Nc6 {[%clk 0:03:01]} 9. O-O-O {[%clk 0:03:02]}  d5 {[%clk 0:03:02]} 10. exd5 {[%clk 0:03:03]}  Nxd5 {[%clk 0:03:03]} 11. Nxc6 {[%clk 0:03:03]}  bxc6 {[%clk 0:03:03]} 12. Nxd5 {[%clk 0:03:04]}  cxd5 {[%clk 0:03:03]} 13. Qxd5 {[%clk 0:03:05]}  Rb8 {[%clk 0:03:03]} 14. b3 {[%clk 0:02:46]}  Qe8 {[%clk 0:03:01]} 15. Qa5 {[%clk 0:02:31]}  Be6 {[%clk 0:02:34]} 16. Bd3 {[%clk 0:02:26]}  Rc8 {[%clk 0:02:07]} 17. Bb5 {[%clk 0:02:12]}  Bf5 {[%clk 0:01:45]} 18. c4 {[%clk 0:01:43]}  Rc6 {[%clk 0:01:22]} 19. Bxc6 {[%clk 0:01:07]}  Qxc6 {[%clk 0:01:21]} 20. Bd4 {[%clk 0:01:07]}  e5 {[%clk 0:00:54]} 21. Bxe5 {[%clk 0:00:42]}  Bh6+ {[%clk 0:00:35]} 22. Kb2 {[%clk 0:00:40]}  Re8 {[%clk 0:00:34]} 23. Rhe1 {[%clk 0:00:37]}  Be6 {[%clk 0:00:14]} 24. Rd8 {[%clk 0:00:33]}  Bf8 {[%clk 0:00:12]} 25. Rxe8 {[%clk 0:00:31]}  Qxe8 {[%clk 0:00:13]} 26. Bc3 {[%clk 0:00:31]}  Qb8 {[%clk 0:00:11]} 27. Qe5 {[%clk 0:00:27]}  Qxe5 {[%clk 0:00:10]} 28. Bxe5 {[%clk 0:00:28]}  Bb4 {[%clk 0:00:10]} 29. Bc3 {[%clk 0:00:27]}  Bc5 {[%clk 0:00:10]} 30. Rd1 {[%clk 0:00:28]}  f5 {[%clk 0:00:08]} 31. Bd4 {[%clk 0:00:28]}  Bd6 {[%clk 0:00:07]} 32. g3 {[%clk 0:00:23]}  a5 {[%clk 0:00:06]} 33. f4 {[%clk 0:00:23]}  Bb4 {[%clk 0:00:06]} 34. a3 {[%clk 0:00:22]}  Be7 {[%clk 0:00:05]} 35. c5 {[%clk 0:00:22]}  Bd5 {[%clk 0:00:04]} 36. b4 {[%clk 0:00:21]}  axb4 {[%clk 0:00:05]} 37. axb4 {[%clk 0:00:21]}  Bc4 {[%clk 0:00:04]} 38. Kc3 {[%clk 0:00:21]}  Bb5 {[%clk 0:00:04]} 39. Re1 {[%clk 0:00:22]}  Kf7 {[%clk 0:00:04]} 40. Be5 {[%clk 0:00:22]}  Bf8 {[%clk 0:00:03]} 41. Ra1 {[%clk 0:00:23]}  Be2 {[%clk 0:00:03]} 42. Ra7+ {[%clk 0:00:23]}  Ke6 {[%clk 0:00:03]} 43. c6 {[%clk 0:00:22]} 1-0


[Site "https://www.chess.com"]

[Event "Titled Tuesday Blitz April 25 Early 2023"]
[White "Fernandez Garcia, Gumersindo"]
[Black "Avazkhonov, Alikhon"]
[WhiteFideId "24516740"]
[BlackFideId "14208504"]
[WhiteElo "2093"]
[BlackElo "1739"]
[Result "0-1"]
[Round "11"]
[TimeControl "180+2"]
[Date "2023.04.25"]
[WhiteClock "0:00:09"]
[BlackClock "0:00:16"]

1. d4 {[%clk 0:03:00]}  Nf6 {[%clk 0:02:53]} 2. c4 {[%clk 0:03:00]}  e6 {[%clk 0:02:52]} 3. Nf3 {[%clk 0:03:00]}  Bb4+ {[%clk 0:02:51]} 4. Bd2 {[%clk 0:02:57]}  Qe7 {[%clk 0:02:52]} 5. g3 {[%clk 0:02:56]}  Bxd2+ {[%clk 0:02:50]} 6. Qxd2 {[%clk 0:02:56]}  Ne4 {[%clk 0:02:46]} 7. Qc2 {[%clk 0:02:56]}  Qb4+ {[%clk 0:02:46]} 8. Nbd2 {[%clk 0:02:53]}  Nxd2 {[%clk 0:02:47]} 9. Nxd2 {[%clk 0:02:52]}  O-O {[%clk 0:02:46]} 10. Bg2 {[%clk 0:02:52]}  Nc6 {[%clk 0:02:46]} 11. e3 {[%clk 0:02:50]}  Qe7 {[%clk 0:02:45]} 12. O-O {[%clk 0:02:50]}  d6 {[%clk 0:02:45]} 13. a3 {[%clk 0:02:48]}  e5 {[%clk 0:02:45]} 14. Nf3 {[%clk 0:02:18]}  e4 {[%clk 0:02:39]} 15. Nd2 {[%clk 0:02:18]}  f5 {[%clk 0:02:40]} 16. b4 {[%clk 0:02:17]}  Qf6 {[%clk 0:02:38]} 17. c5 {[%clk 0:02:17]}  d5 {[%clk 0:02:38]} 18. b5 {[%clk 0:02:12]}  Ne7 {[%clk 0:02:38]} 19. f4 {[%clk 0:02:09]}  c6 {[%clk 0:02:39]} 20. a4 {[%clk 0:02:08]}  Be6 {[%clk 0:02:37]} 21. Rab1 {[%clk 0:02:07]}  Bd7 {[%clk 0:02:13]} 22. Rb2 {[%clk 0:02:05]}  h6 {[%clk 0:01:50]} 23. Rfb1 {[%clk 0:02:04]}  g5 {[%clk 0:01:48]} 24. Nf1 {[%clk 0:02:00]}  gxf4 {[%clk 0:01:47]} 25. gxf4 {[%clk 0:02:01]}  Kh7 {[%clk 0:01:47]} 26. Kh1 {[%clk 0:02:00]}  Rg8 {[%clk 0:01:46]} 27. bxc6 {[%clk 0:01:58]}  Bxc6 {[%clk 0:01:46]} 28. Ng3 {[%clk 0:01:56]}  h5 {[%clk 0:01:33]} 29. Nxh5 {[%clk 0:01:49]}  Qh4 {[%clk 0:01:34]} 30. Qe2 {[%clk 0:01:43]}  Rg4 {[%clk 0:01:31]} 31. Bh3 {[%clk 0:01:12]}  Qxh3 {[%clk 0:01:04]} 32. Nf6+ {[%clk 0:01:11]}  Kh8 {[%clk 0:01:04]} 33. Nxg4 {[%clk 0:01:12]}  fxg4 {[%clk 0:01:05]} 34. Rg1 {[%clk 0:01:12]}  Rg8 {[%clk 0:01:04]} 35. Rg3 {[%clk 0:01:11]}  Qh4 {[%clk 0:01:03]} 36. Rb1 {[%clk 0:00:56]}  Nf5 {[%clk 0:01:04]} 37. Rg2 {[%clk 0:00:56]}  g3 {[%clk 0:01:02]} 38. Rbg1 {[%clk 0:00:57]}  Rg4 {[%clk 0:01:00]} 39. a5 {[%clk 0:00:53]}  Be8 {[%clk 0:01:00]} 40. a6 {[%clk 0:00:51]}  Bh5 {[%clk 0:01:01]} 41. axb7 {[%clk 0:00:48]}  Rg8 {[%clk 0:01:01]} 42. Qxh5+ {[%clk 0:00:15]}  Qxh5 {[%clk 0:00:46]} 43. Rxg3 {[%clk 0:00:15]}  Nxg3+ {[%clk 0:00:40]} 44. Rxg3 {[%clk 0:00:16]}  Qd1+ {[%clk 0:00:23]} 45. Kg2 {[%clk 0:00:16]}  Rxg3+ {[%clk 0:00:24]} 46. Kxg3 {[%clk 0:00:15]}  Qb3 {[%clk 0:00:24]} 47. c6 {[%clk 0:00:15]}  Qb6 {[%clk 0:00:25]} 48. h4 {[%clk 0:00:14]}  a5 {[%clk 0:00:24]} 49. f5 {[%clk 0:00:13]}  Kg7 {[%clk 0:00:24]} 50. Kf4 {[%clk 0:00:12]}  a4 {[%clk 0:00:23]} 51. Ke5 {[%clk 0:00:12]}  Qc7+ {[%clk 0:00:22]} 52. Kxd5 {[%clk 0:00:11]}  a3 {[%clk 0:00:22]} 53. Kc5 {[%clk 0:00:08]}  a2 {[%clk 0:00:23]} 54. d5 {[%clk 0:00:08]}  a1=Q {[%clk 0:00:19]} 55. d6 {[%clk 0:00:09]}  Qaa5+ {[%clk 0:00:16]} 0-1


[Site "https://www.chess.com"]

[Event "Titled Tuesday Blitz April 25 Early 2023"]
[White "Derichs, Roger"]
[Black "Koridze, Lile"]
[WhiteFideId "4630076"]
[BlackFideId "13612514"]
[WhiteElo "2348"]
[BlackElo "2047"]
[Result "0-1"]
[Round "11"]
[TimeControl "180+2"]
[Date "2023.04.25"]
[WhiteClock "0:01:27"]
[BlackClock "0:00:35"]

1. d4 {[%clk 0:03:00]}  Nf6 {[%clk 0:02:59]} 2. c4 {[%clk 0:03:01]}  e6 {[%clk 0:03:00]} 3. g3 {[%clk 0:03:00]}  d5 {[%clk 0:02:58]} 4. Nf3 {[%clk 0:03:00]}  Bb4+ {[%clk 0:02:58]} 5. Bd2 {[%clk 0:02:59]}  Be7 {[%clk 0:02:59]} 6. Bg2 {[%clk 0:02:59]}  O-O {[%clk 0:02:59]} 7. O-O {[%clk 0:02:59]}  c6 {[%clk 0:03:00]} 8. Qc2 {[%clk 0:02:58]}  b6 {[%clk 0:03:00]} 9. Rc1 {[%clk 0:02:57]}  Bb7 {[%clk 0:03:01]} 10. b3 {[%clk 0:02:57]}  Nbd7 {[%clk 0:02:59]} 11. a4 {[%clk 0:02:57]}  c5 {[%clk 0:02:59]} 12. a5 {[%clk 0:02:56]}  cxd4 {[%clk 0:02:55]} 13. Nxd4 {[%clk 0:02:55]}  bxa5 {[%clk 0:02:51]} 14. Bxa5 {[%clk 0:02:53]}  Qb8 {[%clk 0:02:50]} 15. Nb5 {[%clk 0:02:52]}  Rc8 {[%clk 0:02:47]} 16. Nd2 {[%clk 0:02:45]}  dxc4 {[%clk 0:02:44]} 17. bxc4 {[%clk 0:02:37]}  Bxg2 {[%clk 0:01:50]} 18. Kxg2 {[%clk 0:02:37]}  Qe5 {[%clk 0:01:50]} 19. Nf3 {[%clk 0:02:29]}  Qh5 {[%clk 0:01:49]} 20. h3 {[%clk 0:02:22]}  Nc5 {[%clk 0:01:17]} 21. Bb4 {[%clk 0:02:16]}  Bf8 {[%clk 0:01:06]} 22. Rxa7 {[%clk 0:02:08]}  Rab8 {[%clk 0:01:05]} 23. Nbd4 {[%clk 0:02:01]}  Rxb4 {[%clk 0:01:02]} 24. g4 {[%clk 0:01:56]}  Qg6 {[%clk 0:01:00]} 25. Qd2 {[%clk 0:01:52]}  Nce4 {[%clk 0:00:57]} 26. Qf4 {[%clk 0:01:45]}  h6 {[%clk 0:00:40]} 27. Ne5 {[%clk 0:01:40]}  Qg5 {[%clk 0:00:39]} 28. Qxg5 {[%clk 0:01:37]}  Nxg5 {[%clk 0:00:39]} 29. h4 {[%clk 0:01:33]}  Nge4 {[%clk 0:00:39]} 30. Nxf7 {[%clk 0:01:33]}  Bc5 {[%clk 0:00:37]} 31. Nxe6 {[%clk 0:01:27]}  Bxa7 {[%clk 0:00:35]} 0-1


[Site "https://www.chess.com"]

[Event "Titled Tuesday Blitz April 25 Early 2023"]
[White "Tsyhanchuk, Stanislav"]
[Black "Topalov, Aleksandar"]
[WhiteFideId "13505130"]
[BlackFideId "925659"]
[WhiteElo "2173"]
[BlackElo "2151"]
[Result "0-1"]
[Round "11"]
[TimeControl "180+2"]
[Date "2023.04.25"]
[WhiteClock "0:00:05"]
[BlackClock "0:00:55"]

1. e4 {[%clk 0:02:55]}  e6 {[%clk 0:02:36]} 2. d4 {[%clk 0:02:54]}  d5 {[%clk 0:02:37]} 3. Nd2 {[%clk 0:02:54]}  Nf6 {[%clk 0:02:36]} 4. e5 {[%clk 0:02:54]}  Ng8 {[%clk 0:02:36]} 5. Bd3 {[%clk 0:02:53]}  Ne7 {[%clk 0:02:36]} 6. f4 {[%clk 0:02:52]}  h5 {[%clk 0:02:36]} 7. Ngf3 {[%clk 0:02:52]}  g6 {[%clk 0:02:36]} 8. Ng5 {[%clk 0:02:44]}  Qd7 {[%clk 0:02:36]} 9. Ndf3 {[%clk 0:02:43]}  b6 {[%clk 0:02:35]} 10. b3 {[%clk 0:02:30]}  Ba6 {[%clk 0:02:35]} 11. Ba3 {[%clk 0:02:29]}  Bxd3 {[%clk 0:02:33]} 12. Qxd3 {[%clk 0:02:30]}  Nf5 {[%clk 0:02:32]} 13. Bxf8 {[%clk 0:02:30]}  Kxf8 {[%clk 0:02:32]} 14. c4 {[%clk 0:02:25]}  Nc6 {[%clk 0:02:31]} 15. Rd1 {[%clk 0:02:13]}  Rd8 {[%clk 0:02:29]} 16. O-O {[%clk 0:01:49]}  dxc4 {[%clk 0:02:29]} 17. bxc4 {[%clk 0:01:46]}  Ncxd4 {[%clk 0:02:29]} 18. Ne4 {[%clk 0:01:44]}  Nxf3+ {[%clk 0:02:23]} 19. Qxf3 {[%clk 0:01:45]}  Qe7 {[%clk 0:02:18]} 20. Nf6 {[%clk 0:01:37]}  Kg7 {[%clk 0:02:16]} 21. h3 {[%clk 0:01:30]}  Qc5+ {[%clk 0:02:12]} 22. Kh2 {[%clk 0:01:28]}  Ne3 {[%clk 0:02:07]} 23. Rxd8 {[%clk 0:01:24]}  Nxf1+ {[%clk 0:02:06]} 24. Qxf1 {[%clk 0:01:25]}  Rxd8 {[%clk 0:02:06]} 25. Qf3 {[%clk 0:01:13]}  Qxc4 {[%clk 0:01:54]} 26. Qg3 {[%clk 0:01:13]}  Rh8 {[%clk 0:01:51]} 27. Qg5 {[%clk 0:01:09]}  Qd4 {[%clk 0:01:35]} 28. f5 {[%clk 0:00:47]}  exf5 {[%clk 0:01:31]} 29. Ng4 {[%clk 0:00:08]}  hxg4 {[%clk 0:01:20]} 30. Qf6+ {[%clk 0:00:08]}  Kg8 {[%clk 0:01:21]} 31. Qe7 {[%clk 0:00:05]}  Qf4+ {[%clk 0:01:08]} 32. Kg1 {[%clk 0:00:05]}  Qe3+ {[%clk 0:00:55]} 33. Kh2 {[%clk 0:00:05]}  g3+ {[%clk 0:00:55]} 0-1


[Site "https://www.chess.com"]